Cogmind - Beta 13 @@@ ROGUE MODE // 2024.04.08 @ 12:57:38 Player: GwenMeow Result: Self-destructed Performance ------------- Evolutions (1) 500 Regions Visited (3) 600 Robots Destroyed (34) 170 Value Destroyed (762) 762 Prototype IDs (0) 0 Alien Tech Used (0) 0 Bonus (60) 60 TOTAL SCORE: 2092 Bonus ------- Follower Combat Kills 60 Cogmind --------- Core Integrity 400/400 Matter 260/300 Energy 160/160 System Corruption 0% Temperature Cool (0) Movement Walking (120) Location -9/Materials Parts ------- > --- POWER (1) -------- Light Nuclear Core > --- PROPULSION (3) --- Aluminum Leg Carbon-fiber Leg Carbon-fiber Leg > --- UTILITY (3) ------ Medium Storage Unit Sensor Array Hacking Suite > --- WEAPON (2) ------- Grenade Launcher Makeshift Sword > --- INVENTORY (10) --- Transport Network Coupler Targeting Computer Improved Light Cannon Improved Light Cannon Grenade Launcher Peak State ------------ > --- POWER ------------ Light Nuclear Core > --- PROPULSION ------- Aluminum Leg Carbon-fiber Leg Carbon-fiber Leg > --- UTILITY ---------- Medium Storage Unit Sensor Array Hacking Suite > --- WEAPON ----------- Improved Light Cannon Makeshift Sword > --- INVENTORY -------- Transport Network Coupler Targeting Computer Improved Light Cannon Grenade Launcher Grenade Launcher [Rating: 21] Favorites ----------- Power Light Ion Engine Engine Light Ion Engine Power Core Light Nuclear Core Propulsion Improved Treads Treads Improved Treads Leg Carbon-fiber Leg Utility Medium Storage Unit Device Sensor Array Storage Medium Storage Unit Hackware Hacking Suite Weapon Improved Light Cannon Ballistic Gun Assault Rifle Ballistic Cannon Improved Light Cannon Launcher Grenade Launcher Slashing Weapon Makeshift Sword Build | -11 -10 -10 -9 ------- Run | Yrd Mat Min Mat Slots Evolved 2 | . . . 2 Power . | . . . . Propulsion 1 | . . . 1 Utility 1 | . . . 1 Weapon . | . . . . Parts Attached 27 | 6 11 7 3 Power 4 | 1 1 2 . Engine 2 | 1 1 . . Core 2 | . . 2 . Reactor . | . . . . Propulsion 7 | 2 2 2 1 Treads 2 | . 2 . . Leg 5 | 2 . 2 1 Wheel . | . . . . Hover . | . . . . Flight . | . . . . Utility 4 | 1 2 . 1 Device 1 | . . . 1 Storage 2 | 1 1 . . Processor . | . . . . Hackware 1 | . 1 . . Protection . | . . . . Artifact . | . . . . Weapon 12 | 2 6 3 1 Energy Gun . | . . . . Energy Cannon . | . . . . Ballistic Gun 4 | 2 2 . . Ballistic Cannon 4 | . 2 2 . Launcher 3 | . 2 . 1 Special Weapon . | . . . . Impact Weapon . | . . . . Slashing Weapon 1 | . . 1 . Piercing Weapon . | . . . . Special Melee Weapon . | . . . . Unidentified Prototypes . | . . . . Parts Lost 1 | . . 1 . Power 1 | . . 1 . Propulsion . | . . . . Utility . | . . . . Weapon . | . . . . Highest Loss Streak 1 | . . 1 . To Critical Strikes . | . . . . Average Slot Usage (%) 97 | . 95 99 100 Engine 11 | . 14 7 . Core 2 | . . 6 11 Treads 21 | . 23 18 . Leg 6 | . 4 9 33 Storage 13 | . 14 14 11 Hackware 11 | . 10 14 11 Ballistic Gun 8 | . 13 . . Ballistic Cannon 17 | . 12 25 3 Launcher 1 | . 1 . 7 Slashing Weapon 1 | . . 2 11 Naked Turns . | . . . . Heaviest Build 23 | 14 21 23 22 Greatest Support 46 | 20 46 46 40 Greatest Overweight (x) 2 | 2 . 1 . Average Overweight (x) . | . . . . Largest Inventory Capacity 10 | 8 10 10 10 Average Capacity 9 | 5 9 10 10 Most Carried 10 | 3 10 10 6 Average Carried 6 | 1 6 8 5 Final Capacity 10 | 8 10 10 10 Final Carried 9 | 1 9 7 5 Class Distribution -------------------- 88% | Mutant 11% | Scavenger-Mutant Dominant Class ---------------- Mutant | -10/Materials Mutant | -10/Mines Mutant | -9/Materials Resources | -11 -10 -10 -9 ----------- Run | Yrd Mat Min Mat Matter Collected 969 | 196 464 309 . Remotely . | . . . . Salvage Created 860 | . 449 375 36 Parts 54 | . 24 30 . Haulers Intercepted 1 | . 1 . . Recyclers Shooed . | . . . . Parts Field Recycled . | . . . . Retrieved Matter . | . . . . Parts Self-Destructed . | . . . . Prevented . | . . . . Kills | -11 -10 -10 -9 ------- Run | Yrd Mat Min Mat Combat Hostiles Destroyed 24 | . 9 14 1 Guns 5 | . 5 . . Cannons 14 | . . 14 . AOE 5 | . 4 . 1 Classes Destroyed 8 | . 6 2 . Worker 2 | . 1 1 . Tunneler 1 | . . 1 . Hauler 1 | . 1 . . Recycler 2 | . 1 1 . Operator 1 | . 1 . . Watcher 3 | . 3 . . Swarmer 9 | . . 9 . Grunt 15 | . 9 5 1 Best Kill Streak 7 | . 7 4 1 Combat Bots Only 4 | . 4 3 1 Max Kills in Single Turn 4 | . 4 2 1 Gunslinging . | . . . . Exploded 2 | . 2 . 1 Melee . | . . . . Uniques/NPCs Destroyed . | . . . . Combat | -11 -10 -10 -9 -------- Run | Yrd Mat Min Mat Hostile Shots Fired 121 | . 38 75 8 Missed 32 | . 14 15 3 Damage Taken 958 | . 376 537 45 Core 130 | . 77 53 . Absorbed by Shields . | . . . . Regen/Repaired (Parts) 111 | . 111 . . Core Remaining (%) 74 | 100 . 48 . Volleys Fired 72 | . 37 34 1 Largest 2 | . 2 2 1 Hottest 78 | . 78 78 30 Shots Fired 136 | . 74 61 1 Gun 54 | . 54 . . Cannon 73 | . 12 61 . Launcher 9 | . 8 . 1 Special . | . . . . Kinetic 127 | . 66 61 . Thermal . | . . . . Explosive 9 | . 8 . 1 Electromagnetic . | . . . . Robot Hit Streak 9 | . 9 5 . Robot Miss Streak 4 | . 4 4 1 Penetration Max . | . . . . Secondary Targets 1 | . 1 . . Max Gunslinging Chain 1 | . 1 . . Shots Hit Robots 72 | . 46 26 . Core Hits 44 | . 25 18 1 Critical Kills . | . . . . Critical Parts Destroyed . | . . . . Critical Strikes 2 | . . 2 . Blast 2 | . . 2 . Melee Attacks . | . . . . Impact . | . . . . Slashing . | . . . . Piercing . | . . . . Sneak Attacks . | . . . . Combat Hostiles . | . . . . Follow-up Attacks . | . . . . Damage Inflicted 1790 | . 1184 566 40 Guns 474 | . 474 . . Cannons 763 | . 197 566 . Explosions 553 | . 513 . 40 Melee . | . . . . Ramming . | . . . . Kinetic 1237 | . 671 566 . Thermal . | . . . . Explosive 553 | . 513 . 40 Electromagnetic . | . . . . Impact . | . . . . Slashing . | . . . . Piercing . | . . . . Highest Corruption . | . . . . Average Corruption . | . . . . Corruption Purged . | . . . . Corruption Blocked . | . . . . Overload Shots . | . . . . Overflow Damage 12 | . 8 4 . Projectiles 12 | . 8 4 . Explosions . | . . . . Melee . | . . . . Knockbacks 9 | . 4 5 . Impact . | . . . . Kinetic 8 | . 4 4 . Secondary 1 | . . 1 . Self-Inflicted Damage 28 | . 28 . . Shots 1 | . 1 . . Rammed . | . . . . Targets Rammed . | . . . . Kicked . | . . . . Crushed . | . . . . Highest Temperature 216 | . 54 216 . Average Temperature 44 | . 13 56 . Received Heat Transfer 282 | . 201 75 6 Siege Activations . | . . . . Robots Corrupted . | . . . . Combat Hostiles . | . . . . Parts Fried . | . . . . Impact Corruptions . | . . . . Robots Melted . | . . . . Combat Hostiles . | . . . . Parts Melted 1 | . . 1 . Heat Transferred . | . . . . Parts Sabotaged . | . . . . Parts Stolen . | . . . . Parts Stripped . | . . . . Power Chain Reactions . | . . . . Alert | -11 -10 -10 -9 ------- Run | Yrd Mat Min Mat Peak Influence 233 | . 233 201 115 Initial 34 | . . . 34 Average 77 | . 76 84 60 Maximum Alert Level 1 | . 1 1 . Low Security (%) 93 | 100 94 91 100 Level 1 6 | . 5 8 . Level 2 . | . . . . Level 3 . | . . . . Level 4 . | . . . . Level 5 . | . . . . High Security . | . . . . Max Security . | . . . . Squads Dispatched 2 | . 2 . . Investigation . | . . . . Extermination . | . . . . Reinforcement 2 | . 2 . . Assault . | . . . . Garrison . | . . . . Intercept . | . . . . Searches Triggered . | . . . . Construction Impeded . | . . . . Haulers Reinforced . | . . . . Active Scanning Responses . | . . . . Cargo Convoy Interrupts . | . . . . Stealth | -11 -10 -10 -9 --------- Run | Yrd Mat Min Mat Distress Signals 3 | . 2 . 1 Communications Jammed . | . . . . Distress Signals . | . . . . Times Spotted 39 | . 16 18 5 Peak Tracking Total 7 | . 4 5 7 Tactical Retreats . | . . . . Traps | -11 -10 -10 -9 ------- Run | Yrd Mat Min Mat Traps Triggered . | . . . . Indirectly . | . . . . Trap Hack Attempts . | . . . . Triggered . | . . . . Disarmed . | . . . . Reprogrammed . | . . . . Reused . | . . . . Traps Extracted . | . . . . Installed . | . . . . Triggered . | . . . . Machines | -11 -10 -10 -9 ---------- Run | Yrd Mat Min Mat Machines Disabled 1 | . . . 1 Max in Single Turn 1 | . . . 1 Machines Repaired . | . . . . Machines Dismantled . | . . . . Machines Sabotaged . | . . . . Overloaded Fab Kills . | . . . . Hacking | -11 -10 -10 -9 --------- Run | Yrd Mat Min Mat Machines Accessed 6 | . 6 . . Terminals 4 | . 4 . . Fabricators . | . . . . Repair Stations 1 | . 1 . . Recycling Units 1 | . 1 . . Scanalyzers . | . . . . Garrison Access . | . . . . Total Hacks 15 | . 15 . . Successful 10 | . 10 . . Failed 5 | . 5 . . Catastrophic 1 | . 1 . . Database Lockouts . | . . . . Manual 6 | . 6 . . Terminals 8 | . 8 . . Fabricators . | . . . . Repair Stations 4 | . 4 . . Recycling Units 3 | . 3 . . Scanalyzers . | . . . . Garrison Access . | . . . . Terminal Hacks 4 | . 4 . . Alert Level 3 | . 3 . . Transport Status 1 | . 1 . . Fabricator Hacks . | . . . . Repair Station Hacks 4 | . 4 . . Scan Component 2 | . 2 . . Repair 2 | . 2 . . Recycling Unit Hacks 2 | . 2 . . Report Inventory 1 | . 1 . . Retrieve Components 1 | . 1 . . Scanalyzer . | . . . . Garrison Access Hacks . | . . . . Unauthorized Hacks . | . . . . Terminals . | . . . . Fabricators . | . . . . Repair Stations . | . . . . Recycling Units . | . . . . Scanalyzers . | . . . . Garrison Access . | . . . . Data Cores Recovered . | . . . . Used . | . . . . Hacking Detections 4 | . 4 . . Full Trace Events 1 | . 1 . . Feedback Events . | . . . . Feedback Blocked . | . . . . Robot Schematics Acquired . | . . . . Robots Built . | . . . . Authchips . | . . . . Time . | . . . . Total Robot Build Rating . | . . . . Part Schematics Acquired . | . . . . Parts Built . | . . . . Authchips . | . . . . Time . | . . . . Total Part Build Rating . | . . . . Parts Repaired 2 | . 2 . . Time 52 | . 52 . . Parts Recycled . | . . . . Recycled Matter . | . . . . Retrieved Matter . | . . . . Retrieved Components 3 | . 3 . . Parts Scanalyzed . | . . . . Part Schematics Acquired . | . . . . Parts Damaged . | . . . . Bothacking | -11 -10 -10 -9 ------------ Run | Yrd Mat Min Mat Used RIF Installer . | . . . . Robots Hacked . | . . . . Non-combat . | . . . . Combat . | . . . . Robot Hacks Applied . | . . . . Relay Couplers Released . | . . . . Fabnet Peak Effective % . | . . . . Robots Rewired . | . . . . Allies Hacked . | . . . . Hacks Repelled . | . . . . Allies | -11 -10 -10 -9 -------- Run | Yrd Mat Min Mat Total Allies 5 | . . 5 . Largest Group 4 | . . 4 3 Highest-Rated Group 54 | . . 54 38 Highest-Rated Ally 31 | . . 31 16 Total Orders . | . . . . Ally Attacks 16 | . . 13 3 Total Damage 186 | . . 170 16 Kills 2 | . . 1 1 Allies Corrupted . | . . . . Allies Melted . | . . . . Intel | -11 -10 -10 -9 ------- Run | Yrd Mat Min Mat Robot Analysis Total . | . . . . Derelict Logs Recovered 2 | . . 2 . Drone Launches . | . . . . Drone Recoveries . | . . . . Exploration | -11 -10 -10 -9 ------------- Run | Yrd Mat Min Mat Turns Passed 2379 | 62 1412 882 23 Spaces Moved 1347 | 46 785 502 14 Core 12 | 12 . . . Treads 982 | . 657 325 . Legs 353 | 34 128 177 14 Wheels . | . . . . Hover . | . . . . Flight . | . . . . Fastest Speed 50 | 50 120 120 120 Average Speed 149 | 108 153 147 120 Slowest Speed 190 | 150 160 190 120 Overloaded Moves . | . . . . Propulsion Burnouts . | . . . . Robots Hopped . | . . . . Cave-ins Triggered . | . . . . Exploration Rate (%) 45 | 3 92 78 7 Regions Visited 3 Branch Regions 1 Pre-discovered Areas 1 | . . 1 . Known Exits Taken . | . . . . Unknown Exits Taken 3 | 1 1 1 . Scrap Searched 1 | . . 1 . Spaces Dug . | . . . . Terrain Destroyed 38 | . 30 4 4 Melee . | . . . . Projectile 4 | . . 4 . AOE 34 | . 30 . 4 Terrain Rammed . | . . . . Walls Destroyed . | . . . . Machines Disabled . | . . . . Actions | -11 -10 -10 -9 --------- Run | Yrd Mat Min Mat Total 1577 | 58 919 582 18 Wait 89 | . 62 27 . Move 1344 | 45 784 501 14 Hop . | . . . . Pick Up 31 | 7 18 6 . Fast Attach . | . . . . Attach 15 | 6 5 2 2 Detach . | . . . . Swap 12 | . 6 5 1 Drop 14 | . 7 7 . Fire 72 | . 37 34 1 Melee . | . . . . Ram . | . . . . Kick . | . . . . Crush . | . . . . Escape Stasis . | . . . . Rewire . | . . . . Trap . | . . . . Miscellaneous . | . . . . Route ------- -11/Scrapyard -10/Materials (discovered 6 exits: [*Mat x3] / [*Min x2] / [*Sub]) -10/Mines (discovered 2 exits: [*Mat] / [*Exi]) -9/Materials History --------- Turn | Location | Event 18 | -11/Scrapyard | Discovered new exit (range 15) 63 | -11/Scrapyard | Entered Materials 250 | -10/Materials | Discovered new exit (range 12) 318 | -10/Materials | Build established: Mutant 386 | -10/Materials | Discovered new exit (range 15) 616 | -10/Materials | Discovered new exit (range 7) 668 | -10/Materials | Repaired Assault Rifle 696 | -10/Materials | Repaired Assault Rifle 806 | -10/Materials | Discovered new exit (range 15) 1204 | -10/Materials | Discovered new exit (range 15) 1288 | -10/Materials | Discovered new exit (range 16) 1475 | -10/Materials | Entered Mines 1596 | -10/Mines | A weapon hastily lodged in a ceiling crevice suddenly fell to the ground 1777 | -10/Mines | Deemed a non-threat by the Exiles lab entrance 1777 | -10/Mines | Discovered new exit (range 5) 2127 | -10/Mines | Learned Materials stockpile data 2188 | -10/Mines | Core integrity fell below 50% 2237 | -10/Mines | Learned location of Mines (-9) 2303 | -10/Mines | Assisted by bots powering up and referring to "LRC-V3" 2344 | -10/Mines | Discovered new exit (range 5) 2357 | -10/Mines | Entered Materials 2357 | -9/Materials | Accompanied by 3 allies 2357 | -9/Materials | Evolved 2 slots: Propulsion x1, Utility x1 2380 | -9/Materials | Self-destructed Last Messages --------------- 02305_ Found Lgt. Treads. 02305_ Found Terrain Scanner. 02305_ Found 30 Matter. 02306_ Acquired 11 matter. 02344_ EXIT=FOUND 02345_ Trooper 1b destroyed. 02345_ G-34 Mercenary destroyed. 02347_ Seismic Survey Station disabled. 02353_ Trooper 1a suffers critical hit (Burn). 02353_ G-47 Trooper destroyed. 02354_ Acquired 4 matter. PARAMETERS=PROPULSION+1,UTILITY+1 LOCATION=UNKNOWN GOAL=ESCAPE Loading Materials stockpile data (x5)... 02369_ G-34 Mercenary destroyed. 02374_ W-16 Scout sends out distress signal. 02374_ G-34 Mercenary destroyed. 02374_ Terminal disabled. 02376_ U-05 Engineer builds a Door. Map ----- +----------------------------------------------------+ | ????????????????????????????????????????????? | | ????????????????????????????????????????????? | | ????????????????????????????????????????????? | | ????????????????????????????????????????????? | | ????????????????????????????????????????????? | | ????????????????????????????????????????????? | | ????????????????????????????????????????????? | | ????????????????????????????????????????????? | | ????????????????????????????????????????????? | | ????????????????????????????????????????????? | | ???????????????????a ??????????????????????? | | ?????????????? ??? ??????????????????????? | | ?????????????? "?" s#?????????????????????? | | ??????????##?? "?" s#????????????????[????? | | ?????????? ?# """ #?????????????????????? | | ?????????" ?# ? #?????????????????????? | | ?????????" ?# #?????????????????????? | | ????????"" ?#z """ #???"" #?????????????? | | ??????? ?# """ #??""" #?????????????? | | ????????"" "?# """ #??""" #?????????????? | | ????????"" T?# #? #?????????????? | | ?????????" "?# #?? #?????????????? | | ????????? ?# """ [r# u #?????????????? | | ??????####+### """g # + #### a ????????? | | ??????# """ =% ???????? | | ??????# g@ ???????? | | ??????# * ???????? | | ??????####+######## """ ""??????????? | | ???????? ??????# """ ?????????????? | | ??????? ?????# """ ?????????????? | | ?????? ????# ?????????????? | | ?????# ????# ????????????? | | ?????# ??? ???????????? | | ?????# #??####### ??????????? | | ?????# #?????????#+#######??????????? | | ?????# #????????????????????????????? | | ?????###########????????????????????????????? | | ????????????????????????????????????????????? | | ????????????????????????????????????????????? | | ????????????????????????????????????????????? | | ????????????????????????????????????????????? | | ????????????????????????????????????????????? | | ????????????????????????????????????????????? | | ????????????????????????????????????????????? | | ????????????????????????????????????????????? | | ????????????????????????????????????????????? | | ????????????????????????????????????????????? | | ????????????????????????????????????????????? | | ????????????????????????????????????????????? | | ????????????????????????????????????????????? | +----------------------------------------------------+ Best States ------------- Heat Dissipation 28 Energy Generation 14 Energy Capacity 250 Matter Stores 300 Matter Capacity 300 Sight Range 16 Robot Scan Range 14 Terrain Scan Density 10 Evasion (%) 55 Recoil Reduction 2 Offensive Hacking 10 Item Schematics ----------------- None Robot Schematics ------------------ None Fabricated ------------ Nothing Alien Tech Used ----------------- None Achievements -------------- None Challenges ------------ None Game ------ Seed TargetingFlakTendrils Manual? 0 Play Time 00:22:39 Cumulative 7.3 hours Start 2024.04.08 @ 12:34:17 End 2024.04.08 @ 12:57:38 Sessions 1 Manual Loads 0 Difficulty Rogue Special Mode None Game No. 13 Rogue 13 Adventurer 0 Explorer 0 Win Type - Total 0 Types 0/0/0/0/0/0/0/0/0 Lore% 5 Gallery% 10 Achievement% 13 Wizard Run 0 Options --------- Layout 1 ASCII 0 Keyboard 0 Movement Mouse Keybinds 0 Fullscreen 1 Font 24/Smallcaps Map View 50x35 Zoom Use 0% Tactical HUD 1 Map Filters NONE Filters NONE Steam 1 RUN: 068c467e-56f1-4f13-b6c6-7e6adf8727e9